[Event "Titled Tuesday Blitz June 14 Late 2022"]
[White "Isajevsky, Anton"]
[Black "Rustemov, Alexander"]
[WhiteFideId "4142500"]
[BlackFideId "4119002"]
[WhiteElo "2510"]
[BlackElo "2765"]
[Result "0-1"]
[Round "08"]
[TimeControl "180+1"]
[Date "2022.06.14"]
[WhiteClock "0:00:01"]
[BlackClock "0:00:12"]

1. c4 {[%clk 0:02:59]}  c5 {[%clk 0:02:59]} 2. Nc3 {[%clk 0:02:57]}  g6 {[%clk 0:03:00]} 3. g3 {[%clk 0:02:56]}  Bg7 {[%clk 0:03:00]} 4. Bg2 {[%clk 0:02:56]}  Nc6 {[%clk 0:03:00]} 5. Rb1 {[%clk 0:02:56]}  b6 {[%clk 0:03:00]} 6. a3 {[%clk 0:02:55]}  Bxc3 {[%clk 0:02:59]} 7. dxc3 {[%clk 0:02:53]}  Bb7 {[%clk 0:02:59]} 8. Nh3 {[%clk 0:02:28]}  d6 {[%clk 0:02:58]} 9. Nf4 {[%clk 0:02:27]}  Qd7 {[%clk 0:02:52]} 10. b3 {[%clk 0:02:06]}  h5 {[%clk 0:02:41]} 11. h4 {[%clk 0:02:06]}  Nf6 {[%clk 0:02:26]} 12. Nd5 {[%clk 0:01:52]}  Ng4 {[%clk 0:02:23]} 13. Bh3 {[%clk 0:01:40]}  f5 {[%clk 0:02:10]} 14. f3 {[%clk 0:01:36]}  Nf6 {[%clk 0:01:59]} 15. e4 {[%clk 0:01:25]}  O-O-O {[%clk 0:01:49]} 16. exf5 {[%clk 0:00:50]}  gxf5 {[%clk 0:01:46]} 17. Nxf6 {[%clk 0:00:49]}  exf6 {[%clk 0:01:44]} 18. Qc2 {[%clk 0:00:46]}  Ne7 {[%clk 0:01:34]} 19. Kf2 {[%clk 0:00:40]}  d5 {[%clk 0:01:32]} 20. Rd1 {[%clk 0:00:36]}  Qc6 {[%clk 0:01:21]} 21. Bf4 {[%clk 0:00:32]}  dxc4 {[%clk 0:01:12]} 22. Bxf5+ {[%clk 0:00:30]}  Nxf5 {[%clk 0:01:12]} 23. Qxf5+ {[%clk 0:00:31]}  Rd7 {[%clk 0:01:13]} 24. Qxd7+ {[%clk 0:00:20]}  Qxd7 {[%clk 0:01:13]} 25. Rxd7 {[%clk 0:00:20]}  Kxd7 {[%clk 0:01:14]} 26. Rd1+ {[%clk 0:00:17]}  Ke7 {[%clk 0:01:12]} 27. bxc4 {[%clk 0:00:14]}  Ba6 {[%clk 0:01:08]} 28. Re1+ {[%clk 0:00:12]}  Kf7 {[%clk 0:01:05]} 29. Rd1 {[%clk 0:00:12]}  Ke7 {[%clk 0:01:00]} 30. Re1+ {[%clk 0:00:10]}  Kd7 {[%clk 0:00:57]} 31. Rd1+ {[%clk 0:00:10]}  Kc8 {[%clk 0:00:56]} 32. Rd6 {[%clk 0:00:10]}  Rf8 {[%clk 0:00:51]} 33. Rc6+ {[%clk 0:00:03]}  Kb7 {[%clk 0:00:42]} 34. Rc7+ {[%clk 0:00:03]}  Ka8 {[%clk 0:00:43]} 35. Rh7 {[%clk 0:00:03]}  Bxc4 {[%clk 0:00:42]} 36. Rxh5 {[%clk 0:00:04]}  Re8 {[%clk 0:00:41]} 37. g4 {[%clk 0:00:03]}  Re2+ {[%clk 0:00:40]} 38. Kg3 {[%clk 0:00:03]}  Rc2 {[%clk 0:00:40]} 39. Rh8+ {[%clk 0:00:04]}  Kb7 {[%clk 0:00:40]} 40. h5 {[%clk 0:00:04]}  Rxc3 {[%clk 0:00:41]} 41. h6 {[%clk 0:00:04]}  Be2 {[%clk 0:00:41]} 42. h7 {[%clk 0:00:02]}  Rxf3+ {[%clk 0:00:41]} 43. Kh4 {[%clk 0:00:03]}  Rxf4 {[%clk 0:00:31]} 44. Rb8+ {[%clk 0:00:03]}  Kxb8 {[%clk 0:00:28]} 45. h8=Q+ {[%clk 0:00:04]}  Kb7 {[%clk 0:00:29]} 46. Qg7+ {[%clk 0:00:03]}  Ka6 {[%clk 0:00:28]} 47. Qe7 {[%clk 0:00:03]}  Bxg4 {[%clk 0:00:23]} 48. Kg3 {[%clk 0:00:03]}  Rd4 {[%clk 0:00:22]} 49. Qxf6 {[%clk 0:00:03]}  Bd1 {[%clk 0:00:20]} 50. Kf2 {[%clk 0:00:03]}  Ba4 {[%clk 0:00:19]} 51. Ke3 {[%clk 0:00:03]}  Ka5 {[%clk 0:00:19]} 52. Qe7 {[%clk 0:00:02]}  a6 {[%clk 0:00:19]} 53. Qf6 {[%clk 0:00:01]}  Bb5 {[%clk 0:00:18]} 54. Qe7 {[%clk 0:00:01]}  Rd3+ {[%clk 0:00:18]} 55. Ke4 {[%clk 0:00:02]}  Rxa3 {[%clk 0:00:18]} 56. Qd6 {[%clk 0:00:02]}  Rd3 {[%clk 0:00:17]} 57. Qf8 {[%clk 0:00:02]}  Rd4+ {[%clk 0:00:18]} 58. Ke5 {[%clk 0:00:02]}  Bd3 {[%clk 0:00:14]} 59. Qf2 {[%clk 0:00:02]}  b5 {[%clk 0:00:12]} 60. Qb2 {[%clk 0:00:02]}  Kb6 {[%clk 0:00:11]} 61. Qc3 {[%clk 0:00:03]}  b4 {[%clk 0:00:11]} 62. Qb2 {[%clk 0:00:02]}  a5 {[%clk 0:00:12]} 63. Qb3 {[%clk 0:00:01]}  Kb5 {[%clk 0:00:12]} 0-1


[Site "https://www.chess.com"]

[Event "Titled Tuesday Blitz June 14 Late 2022"]
[White "Kovanova, Baira"]
[Black "Yaksin, Oleg"]
[WhiteFideId "4164083"]
[BlackFideId "24105880"]
[WhiteElo "2190"]
[BlackElo "2256"]
[Result "1-0"]
[Round "08"]
[TimeControl "180+1"]
[Date "2022.06.15"]
[WhiteClock "0:00:51"]
[BlackClock "0:00:10"]

1. e4 {[%clk 0:02:59]}  c5 {[%clk 0:02:59]} 2. Nf3 {[%clk 0:02:59]}  d6 {[%clk 0:02:59]} 3. d4 {[%clk 0:02:59]}  cxd4 {[%clk 0:03:00]} 4. Nxd4 {[%clk 0:02:59]}  Nf6 {[%clk 0:03:01]} 5. Nc3 {[%clk 0:03:00]}  Nc6 {[%clk 0:03:01]} 6. Bg5 {[%clk 0:02:58]}  e6 {[%clk 0:03:01]} 7. Bb5 {[%clk 0:02:57]}  Bd7 {[%clk 0:03:00]} 8. Qd2 {[%clk 0:02:58]}  Be7 {[%clk 0:03:00]} 9. O-O {[%clk 0:02:52]}  a6 {[%clk 0:02:53]} 10. Bxc6 {[%clk 0:02:50]}  bxc6 {[%clk 0:02:54]} 11. f4 {[%clk 0:02:44]}  h6 {[%clk 0:02:10]} 12. Bxf6 {[%clk 0:02:41]}  Bxf6 {[%clk 0:02:10]} 13. Kh1 {[%clk 0:02:41]}  O-O {[%clk 0:02:07]} 14. Nf3 {[%clk 0:02:38]}  Be7 {[%clk 0:01:47]} 15. Rad1 {[%clk 0:02:37]}  Qb6 {[%clk 0:01:46]} 16. b3 {[%clk 0:02:37]}  Rad8 {[%clk 0:01:41]} 17. a4 {[%clk 0:02:31]}  Qc7 {[%clk 0:01:37]} 18. Qe2 {[%clk 0:02:30]}  a5 {[%clk 0:01:37]} 19. Qc4 {[%clk 0:02:23]}  Bc8 {[%clk 0:01:29]} 20. f5 {[%clk 0:02:21]}  Qb6 {[%clk 0:01:27]} 21. Nd4 {[%clk 0:02:11]}  c5 {[%clk 0:00:56]} 22. Ndb5 {[%clk 0:02:07]}  Bf6 {[%clk 0:00:51]} 23. Qd3 {[%clk 0:02:00]}  Be5 {[%clk 0:00:48]} 24. Qf3 {[%clk 0:01:56]}  Bb7 {[%clk 0:00:40]} 25. Qg4 {[%clk 0:01:55]}  Rde8 {[%clk 0:00:40]} 26. f6 {[%clk 0:01:51]}  g6 {[%clk 0:00:36]} 27. Qh4 {[%clk 0:01:48]}  Kh7 {[%clk 0:00:35]} 28. Rd3 {[%clk 0:01:48]}  Rh8 {[%clk 0:00:35]} 29. Rfd1 {[%clk 0:01:20]}  Ba6 {[%clk 0:00:33]} 30. Rxd6 {[%clk 0:01:15]}  Bxd6 {[%clk 0:00:26]} 31. Nxd6 {[%clk 0:01:14]}  Ref8 {[%clk 0:00:20]} 32. e5 {[%clk 0:01:13]}  Qc6 {[%clk 0:00:20]} 33. Nce4 {[%clk 0:01:12]}  Kg8 {[%clk 0:00:16]} 34. Qg3 {[%clk 0:01:09]}  c4 {[%clk 0:00:14]} 35. Re1 {[%clk 0:01:04]}  Kh7 {[%clk 0:00:13]} 36. Qh4 {[%clk 0:01:00]}  cxb3 {[%clk 0:00:12]} 37. cxb3 {[%clk 0:00:56]}  Bd3 {[%clk 0:00:12]} 38. Ng5+ {[%clk 0:00:54]}  Kg8 {[%clk 0:00:11]} 39. Ngxf7 {[%clk 0:00:55]}  Rxf7 {[%clk 0:00:12]} 40. Nxf7 {[%clk 0:00:53]}  Kxf7 {[%clk 0:00:12]} 41. Qd4 {[%clk 0:00:52]}  Bf5 {[%clk 0:00:10]} 42. Qa7+ {[%clk 0:00:51]} 1-0


[Site "https://www.chess.com"]

[Event "Titled Tuesday Blitz June 14 Late 2022"]
[White "Martin Carmona, Gaston Manuel"]
[Black "Gaisinsky, Adam"]
[WhiteFideId "22284567"]
[BlackFideId "2620561"]
[WhiteElo "2162"]
[BlackElo "1965"]
[Result "1-0"]
[Round "08"]
[TimeControl "180+1"]
[Date "2022.06.15"]
[WhiteClock "0:00:29"]
[BlackClock "0:00:05"]

1. d4 {[%clk 0:03:00]}  Nf6 {[%clk 0:02:59]} 2. c4 {[%clk 0:03:00]}  e6 {[%clk 0:02:58]} 3. Nf3 {[%clk 0:03:01]}  d5 {[%clk 0:02:58]} 4. g3 {[%clk 0:03:01]}  Be7 {[%clk 0:02:58]} 5. Bg2 {[%clk 0:03:02]}  O-O {[%clk 0:02:58]} 6. O-O {[%clk 0:03:03]}  dxc4 {[%clk 0:02:59]} 7. Qc2 {[%clk 0:03:04]}  b5 {[%clk 0:02:58]} 8. a4 {[%clk 0:03:01]}  b4 {[%clk 0:02:59]} 9. Nfd2 {[%clk 0:02:43]}  Nd5 {[%clk 0:02:57]} 10. Nxc4 {[%clk 0:02:43]}  c5 {[%clk 0:02:54]} 11. dxc5 {[%clk 0:02:37]}  Ba6 {[%clk 0:02:54]} 12. Ne3 {[%clk 0:02:36]}  Nd7 {[%clk 0:02:53]} 13. c6 {[%clk 0:02:37]}  Rc8 {[%clk 0:02:52]} 14. Nxd5 {[%clk 0:02:37]}  exd5 {[%clk 0:02:52]} 15. Bf4 {[%clk 0:02:38]}  Nc5 {[%clk 0:02:42]} 16. Rd1 {[%clk 0:02:36]}  Bc4 {[%clk 0:02:30]} 17. Nd2 {[%clk 0:02:35]}  Bxe2 {[%clk 0:02:30]} 18. Nb3 {[%clk 0:02:32]}  Bxd1 {[%clk 0:02:27]} 19. Rxd1 {[%clk 0:02:30]}  Rxc6 {[%clk 0:02:25]} 20. Bxd5 {[%clk 0:02:15]}  Qc8 {[%clk 0:01:45]} 21. Bxc6 {[%clk 0:01:39]}  Qxc6 {[%clk 0:01:45]} 22. Rc1 {[%clk 0:01:27]}  Rc8 {[%clk 0:01:25]} 23. Be3 {[%clk 0:01:26]}  Qxa4 {[%clk 0:00:32]} 24. Nxc5 {[%clk 0:01:25]}  Qb5 {[%clk 0:00:32]} 25. Qf5 {[%clk 0:01:17]}  Rc7 {[%clk 0:00:25]} 26. Qe5 {[%clk 0:01:07]}  Qa5 {[%clk 0:00:14]} 27. Kg2 {[%clk 0:01:00]}  h6 {[%clk 0:00:11]} 28. Bd4 {[%clk 0:00:48]}  Bf6 {[%clk 0:00:09]} 29. Qe8+ {[%clk 0:00:47]}  Kh7 {[%clk 0:00:08]} 30. Bxf6 {[%clk 0:00:46]}  Rxc5 {[%clk 0:00:05]} 31. Qxf7 {[%clk 0:00:29]} 1-0


[Site "https://www.chess.com"]

[Event "Titled Tuesday Blitz June 14 Late 2022"]
[White "Martinez Reyes, Pedro Ramon"]
[Black "Ivanisevic, Ivan"]
[WhiteFideId "3901807"]
[BlackFideId "912417"]
[WhiteElo "2410"]
[BlackElo "2535"]
[Result "0-1"]
[Round "08"]
[TimeControl "180+1"]
[Date "2022.06.14"]
[WhiteClock "0:00:34"]
[BlackClock "0:01:00"]

1. e4 {[%clk 0:03:00]}  c5 {[%clk 0:02:50]} 2. Nf3 {[%clk 0:03:00]}  d6 {[%clk 0:02:46]} 3. Bb5+ {[%clk 0:02:59]}  Bd7 {[%clk 0:02:45]} 4. a4 {[%clk 0:02:59]}  Nc6 {[%clk 0:02:39]} 5. O-O {[%clk 0:02:59]}  Nf6 {[%clk 0:02:38]} 6. Re1 {[%clk 0:03:00]}  a6 {[%clk 0:02:37]} 7. Bf1 {[%clk 0:03:00]}  Bg4 {[%clk 0:02:15]} 8. h3 {[%clk 0:02:59]}  Bxf3 {[%clk 0:02:14]} 9. Qxf3 {[%clk 0:03:00]}  g5 {[%clk 0:02:13]} 10. d3 {[%clk 0:02:54]}  Rg8 {[%clk 0:02:13]} 11. Qd1 {[%clk 0:02:33]}  g4 {[%clk 0:02:11]} 12. h4 {[%clk 0:02:34]}  g3 {[%clk 0:02:10]} 13. fxg3 {[%clk 0:02:27]}  Rxg3 {[%clk 0:02:09]} 14. Bf4 {[%clk 0:02:26]}  Rg8 {[%clk 0:02:06]} 15. Nd2 {[%clk 0:02:21]}  Ng4 {[%clk 0:01:43]} 16. Nf3 {[%clk 0:02:11]}  e6 {[%clk 0:01:33]} 17. Qd2 {[%clk 0:01:42]}  Be7 {[%clk 0:01:27]} 18. Bg5 {[%clk 0:01:42]}  h6 {[%clk 0:01:24]} 19. Bxe7 {[%clk 0:01:36]}  Qxe7 {[%clk 0:01:24]} 20. c3 {[%clk 0:01:29]}  Nce5 {[%clk 0:01:23]} 21. Nxe5 {[%clk 0:01:17]}  dxe5 {[%clk 0:01:24]} 22. Be2 {[%clk 0:01:12]}  Qxh4 {[%clk 0:01:17]} 23. Bxg4 {[%clk 0:01:12]}  Rxg4 {[%clk 0:01:18]} 24. Qf2 {[%clk 0:01:10]}  Qxf2+ {[%clk 0:01:14]} 25. Kxf2 {[%clk 0:01:10]}  O-O-O {[%clk 0:01:14]} 26. Re3 {[%clk 0:01:03]}  c4 {[%clk 0:01:06]} 27. g3 {[%clk 0:00:41]}  Rxd3 {[%clk 0:01:03]} 28. Rxd3 {[%clk 0:00:41]}  cxd3 {[%clk 0:01:04]} 29. Kf3 {[%clk 0:00:42]}  f5 {[%clk 0:01:03]} 30. Rd1 {[%clk 0:00:37]}  h5 {[%clk 0:01:03]} 31. exf5 {[%clk 0:00:34]}  e4+ {[%clk 0:01:00]} 32. Ke3 {[%clk 0:00:34]}  exf5 {[%clk 0:01:00]} 0-1


[Site "https://www.chess.com"]

[Event "Titled Tuesday Blitz June 14 Late 2022"]
[White "Mortazavi, Ali"]
[Black "Leiva, Gianmarco"]
[WhiteFideId "401323"]
[BlackFideId "3804399"]
[WhiteElo "2339"]
[BlackElo "2323"]
[Result "0-1"]
[Round "08"]
[TimeControl "180+1"]
[Date "2022.06.15"]
[WhiteClock "0:00:09"]
[BlackClock "0:00:08"]

1. Nf3 {[%clk 0:03:00]}  Nf6 {[%clk 0:02:59]} 2. g3 {[%clk 0:03:01]}  d5 {[%clk 0:02:59]} 3. Bg2 {[%clk 0:03:02]}  c6 {[%clk 0:02:59]} 4. O-O {[%clk 0:03:03]}  Bg4 {[%clk 0:02:58]} 5. d3 {[%clk 0:03:04]}  Nbd7 {[%clk 0:02:58]} 6. c4 {[%clk 0:03:04]}  dxc4 {[%clk 0:02:56]} 7. dxc4 {[%clk 0:03:02]}  e5 {[%clk 0:02:55]} 8. Nc3 {[%clk 0:03:01]}  Be7 {[%clk 0:02:51]} 9. h3 {[%clk 0:03:01]}  Be6 {[%clk 0:02:51]} 10. b3 {[%clk 0:02:59]}  O-O {[%clk 0:02:48]} 11. Qc2 {[%clk 0:02:56]}  h6 {[%clk 0:02:46]} 12. Bb2 {[%clk 0:02:56]}  Qc7 {[%clk 0:02:45]} 13. Nh4 {[%clk 0:02:48]}  Rfe8 {[%clk 0:02:38]} 14. Rad1 {[%clk 0:02:48]}  Bf8 {[%clk 0:02:38]} 15. a3 {[%clk 0:02:45]}  a5 {[%clk 0:02:37]} 16. Nf5 {[%clk 0:02:33]}  Nc5 {[%clk 0:02:35]} 17. g4 {[%clk 0:02:23]}  Qb6 {[%clk 0:02:03]} 18. Na4 {[%clk 0:01:49]}  Qxb3 {[%clk 0:01:21]} 19. Qxb3 {[%clk 0:01:49]}  Nxb3 {[%clk 0:01:22]} 20. Nd6 {[%clk 0:01:36]}  Bxd6 {[%clk 0:01:19]} 21. Rxd6 {[%clk 0:01:36]}  Rad8 {[%clk 0:01:13]} 22. c5 {[%clk 0:01:24]}  Nd4 {[%clk 0:00:33]} 23. e3 {[%clk 0:01:13]}  Nb5 {[%clk 0:00:27]} 24. Rxd8 {[%clk 0:01:11]}  Rxd8 {[%clk 0:00:28]} 25. Bxe5 {[%clk 0:01:11]}  Nxa3 {[%clk 0:00:26]} 26. Nb6 {[%clk 0:00:42]}  Nc4 {[%clk 0:00:16]} 27. Bc7 {[%clk 0:00:42]}  Rd2 {[%clk 0:00:14]} 28. Ra1 {[%clk 0:00:38]}  Ne8 {[%clk 0:00:09]} 29. Nxc4 {[%clk 0:00:33]}  Bxc4 {[%clk 0:00:09]} 30. Bxa5 {[%clk 0:00:34]}  Rc2 {[%clk 0:00:09]} 31. Bb6 {[%clk 0:00:33]}  Ra2 {[%clk 0:00:03]} 32. Rd1 {[%clk 0:00:32]}  Kf8 {[%clk 0:00:02]} 33. Rd8 {[%clk 0:00:32]}  Ke7 {[%clk 0:00:03]} 34. Rb8 {[%clk 0:00:32]}  Ba6 {[%clk 0:00:03]} 35. h4 {[%clk 0:00:28]}  Nf6 {[%clk 0:00:04]} 36. Bf3 {[%clk 0:00:22]}  Nd7 {[%clk 0:00:04]} 37. Rg8 {[%clk 0:00:20]}  Nxb6 {[%clk 0:00:04]} 38. cxb6 {[%clk 0:00:21]}  Kf6 {[%clk 0:00:04]} 39. Ra8 {[%clk 0:00:18]}  Ra1+ {[%clk 0:00:02]} 40. Kg2 {[%clk 0:00:18]}  Ra4 {[%clk 0:00:03]} 41. Kg3 {[%clk 0:00:18]}  Rb4 {[%clk 0:00:02]} 42. Bxc6 {[%clk 0:00:16]}  Rxb6 {[%clk 0:00:03]} 43. Bf3 {[%clk 0:00:16]}  g5 {[%clk 0:00:03]} 44. h5 {[%clk 0:00:16]}  Bb5 {[%clk 0:00:02]} 45. Be4 {[%clk 0:00:13]}  Bc6 {[%clk 0:00:02]} 46. Bf5 {[%clk 0:00:14]}  Bd5 {[%clk 0:00:01]} 47. Rd8 {[%clk 0:00:12]}  Be6 {[%clk 0:00:02]} 48. Be4 {[%clk 0:00:10]}  Rb4 {[%clk 0:00:02]} 49. f3 {[%clk 0:00:11]}  Rb3 {[%clk 0:00:02]} 50. Rh8 {[%clk 0:00:10]}  Kg7 {[%clk 0:00:02]} 51. Rb8 {[%clk 0:00:09]}  b5 {[%clk 0:00:02]} 52. Rb7 {[%clk 0:00:09]}  b4 {[%clk 0:00:01]} 53. Bf5 {[%clk 0:00:06]}  Bxf5 {[%clk 0:00:01]} 54. gxf5 {[%clk 0:00:06]}  Kf6 {[%clk 0:00:01]} 55. e4 {[%clk 0:00:06]}  Rb1 {[%clk 0:00:02]} 56. Rb6+ {[%clk 0:00:07]}  Kg7 {[%clk 0:00:01]} 57. f6+ {[%clk 0:00:07]}  Kh7 {[%clk 0:00:02]} 58. Rb7 {[%clk 0:00:06]}  b3 {[%clk 0:00:02]} 59. Rxf7+ {[%clk 0:00:05]}  Kg8 {[%clk 0:00:02]} 60. Rg7+ {[%clk 0:00:05]}  Kf8 {[%clk 0:00:03]} 61. Rb7 {[%clk 0:00:06]}  b2 {[%clk 0:00:04]} 62. Kg2 {[%clk 0:00:05]}  Ke8 {[%clk 0:00:03]} 63. e5 {[%clk 0:00:06]}  Re1 {[%clk 0:00:03]} 64. Rb8+ {[%clk 0:00:05]}  Kf7 {[%clk 0:00:03]} 65. Rxb2 {[%clk 0:00:05]}  Rxe5 {[%clk 0:00:04]} 66. Rb6 {[%clk 0:00:05]}  Re6 {[%clk 0:00:04]} 67. Rb7+ {[%clk 0:00:05]}  Kxf6 {[%clk 0:00:04]} 68. Kg3 {[%clk 0:00:06]}  Kf5 {[%clk 0:00:03]} 69. Rf7+ {[%clk 0:00:05]}  Ke5 {[%clk 0:00:03]} 70. Rg7 {[%clk 0:00:05]}  Kf5 {[%clk 0:00:03]} 71. Rf7+ {[%clk 0:00:05]}  Ke5 {[%clk 0:00:04]} 72. Kg4 {[%clk 0:00:06]}  Rd6 {[%clk 0:00:04]} 73. Rg7 {[%clk 0:00:06]}  Rd4+ {[%clk 0:00:04]} 74. Kg3 {[%clk 0:00:07]}  Rh4 {[%clk 0:00:04]} 75. Re7+ {[%clk 0:00:05]}  Kf6 {[%clk 0:00:05]} 76. Ra7 {[%clk 0:00:05]}  Rxh5 {[%clk 0:00:05]} 77. Ra6+ {[%clk 0:00:06]}  Kg7 {[%clk 0:00:05]} 78. Ra7+ {[%clk 0:00:07]}  Kf6 {[%clk 0:00:06]} 79. Ra6+ {[%clk 0:00:07]}  Kf7 {[%clk 0:00:06]} 80. Ra7+ {[%clk 0:00:06]}  Ke6 {[%clk 0:00:07]} 81. Ra6+ {[%clk 0:00:06]}  Kd5 {[%clk 0:00:07]} 82. Rg6 {[%clk 0:00:06]}  Rh4 {[%clk 0:00:07]} 83. Rf6 {[%clk 0:00:05]}  Ke5 {[%clk 0:00:08]} 84. Rf8 {[%clk 0:00:05]}  Rh1 {[%clk 0:00:07]} 85. Re8+ {[%clk 0:00:05]}  Kf6 {[%clk 0:00:07]} 86. Rf8+ {[%clk 0:00:06]}  Kg7 {[%clk 0:00:08]} 87. Ra8 {[%clk 0:00:06]}  Rg1+ {[%clk 0:00:08]} 88. Kf2 {[%clk 0:00:06]}  Rb1 {[%clk 0:00:09]} 89. Kg3 {[%clk 0:00:07]}  Rb7 {[%clk 0:00:08]} 90. Ra6 {[%clk 0:00:08]}  Rf7 {[%clk 0:00:09]} 91. Kg4 {[%clk 0:00:08]}  Rf4+ {[%clk 0:00:09]} 92. Kg3 {[%clk 0:00:09]}  Rf7 {[%clk 0:00:10]} 93. Rb6 {[%clk 0:00:08]}  Rf6 {[%clk 0:00:11]} 94. Rb7+ {[%clk 0:00:08]}  Kg6 {[%clk 0:00:11]} 95. Rb5 {[%clk 0:00:09]}  Rf5 {[%clk 0:00:11]} 96. Rb6+ {[%clk 0:00:09]}  Rf6 {[%clk 0:00:12]} 97. Rb8 {[%clk 0:00:10]}  Ra6 {[%clk 0:00:12]} 98. Rg8+ {[%clk 0:00:10]}  Kh5 {[%clk 0:00:12]} 99. Rc8 {[%clk 0:00:10]}  Ra3 {[%clk 0:00:13]} 100. Rc4 {[%clk 0:00:10]}  Rd3 {[%clk 0:00:12]} 101. Rb4 {[%clk 0:00:10]}  Rc3 {[%clk 0:00:12]} 102. Rd4 {[%clk 0:00:10]}  Kg6 {[%clk 0:00:13]} 103. Rd6+ {[%clk 0:00:08]}  Kh5 {[%clk 0:00:13]} 104. Rd5 {[%clk 0:00:08]}  Rc1 {[%clk 0:00:13]} 105. Kg2 {[%clk 0:00:08]}  Rc4 {[%clk 0:00:11]} 106. Kg3 {[%clk 0:00:08]}  Rc6 {[%clk 0:00:10]} 107. Ra5 {[%clk 0:00:08]}  Kg6 {[%clk 0:00:09]} 108. Rb5 {[%clk 0:00:08]}  h5 {[%clk 0:00:09]} 109. Rb8 {[%clk 0:00:08]}  Kf5 {[%clk 0:00:09]} 110. Rf8+ {[%clk 0:00:08]}  Rf6 {[%clk 0:00:09]} 111. Rh8 {[%clk 0:00:08]}  h4+ {[%clk 0:00:10]} 112. Kh3 {[%clk 0:00:08]}  Kf4 {[%clk 0:00:10]} 113. Rg8 {[%clk 0:00:07]}  Rf5 {[%clk 0:00:07]} 114. Kg2 {[%clk 0:00:08]}  Ke3 {[%clk 0:00:07]} 115. Re8+ {[%clk 0:00:08]}  Kd4 {[%clk 0:00:07]} 116. Re4+ {[%clk 0:00:08]}  Kd5 {[%clk 0:00:07]} 117. Kh3 {[%clk 0:00:08]}  Rxf3+ {[%clk 0:00:07]} 118. Kg4 {[%clk 0:00:09]}  Kxe4 {[%clk 0:00:08]} 0-1


[Site "https://www.chess.com"]

[Event "Titled Tuesday Blitz June 14 Late 2022"]
[White "Nozdrachev, Leonid"]
[Black "Deac, Bogdan-Daniel"]
[WhiteFideId "24113433"]
[BlackFideId "1226380"]
[WhiteElo "2129"]
[BlackElo "2648"]
[Result "0-1"]
[Round "08"]
[TimeControl "180+1"]
[Date "2022.06.14"]
[WhiteClock "0:00:59"]
[BlackClock "0:02:28"]

1. e4 {[%clk 0:03:00]}  c5 {[%clk 0:02:56]} 2. c3 {[%clk 0:02:57]}  Nf6 {[%clk 0:02:55]} 3. e5 {[%clk 0:02:56]}  Nd5 {[%clk 0:02:55]} 4. d4 {[%clk 0:02:56]}  cxd4 {[%clk 0:02:56]} 5. Nf3 {[%clk 0:02:56]}  Nc6 {[%clk 0:02:55]} 6. Bc4 {[%clk 0:02:55]}  Nb6 {[%clk 0:02:55]} 7. Bb3 {[%clk 0:02:54]}  d5 {[%clk 0:02:54]} 8. exd6 {[%clk 0:02:53]}  Qxd6 {[%clk 0:02:54]} 9. O-O {[%clk 0:02:53]}  e6 {[%clk 0:02:49]} 10. cxd4 {[%clk 0:02:48]}  Be7 {[%clk 0:02:49]} 11. Nc3 {[%clk 0:02:47]}  O-O {[%clk 0:02:50]} 12. Ne4 {[%clk 0:02:36]}  Qc7 {[%clk 0:02:45]} 13. Bg5 {[%clk 0:02:32]}  Rd8 {[%clk 0:02:44]} 14. Rc1 {[%clk 0:02:30]}  h6 {[%clk 0:02:44]} 15. Bh4 {[%clk 0:02:04]}  Bxh4 {[%clk 0:02:40]} 16. Nxh4 {[%clk 0:02:05]}  Qf4 {[%clk 0:02:40]} 17. Ng6 {[%clk 0:01:12]}  Qxe4 {[%clk 0:02:33]} 18. Rxc6 {[%clk 0:01:04]}  bxc6 {[%clk 0:02:28]} 19. Bc2 {[%clk 0:01:03]}  Qxd4 {[%clk 0:02:28]} 20. Ne7+ {[%clk 0:00:59]}  Kf8 {[%clk 0:02:28]} 0-1


[Site "https://www.chess.com"]

[Event "Titled Tuesday Blitz June 14 Late 2022"]
[White "Ozates, Tuna"]
[Black "Artemenko, Oleg"]
[WhiteFideId "6354521"]
[BlackFideId "14201798"]
[WhiteElo "1887"]
[BlackElo "2287"]
[Result "0-1"]
[Round "08"]
[TimeControl "180+1"]
[Date "2022.06.15"]
[WhiteClock "0:00:07"]
[BlackClock "0:00:12"]

1. e4 {[%clk 0:03:00]}  e6 {[%clk 0:02:55]} 2. d4 {[%clk 0:03:00]}  d5 {[%clk 0:02:53]} 3. Nd2 {[%clk 0:03:01]}  Nf6 {[%clk 0:02:49]} 4. e5 {[%clk 0:03:01]}  Nfd7 {[%clk 0:02:50]} 5. Bd3 {[%clk 0:03:02]}  c5 {[%clk 0:02:50]} 6. c3 {[%clk 0:03:03]}  Nc6 {[%clk 0:02:51]} 7. Ne2 {[%clk 0:03:04]}  Qb6 {[%clk 0:02:51]} 8. Nf3 {[%clk 0:03:03]}  cxd4 {[%clk 0:02:52]} 9. cxd4 {[%clk 0:03:04]}  f6 {[%clk 0:02:53]} 10. exf6 {[%clk 0:03:03]}  Nxf6 {[%clk 0:02:53]} 11. O-O {[%clk 0:03:04]}  Bd6 {[%clk 0:02:54]} 12. a3 {[%clk 0:03:00]}  O-O {[%clk 0:02:54]} 13. b4 {[%clk 0:02:59]}  Bd7 {[%clk 0:02:52]} 14. Bg5 {[%clk 0:02:59]}  Ne4 {[%clk 0:02:51]} 15. Bh4 {[%clk 0:02:57]}  h6 {[%clk 0:02:46]} 16. Bg3 {[%clk 0:02:57]}  Nxg3 {[%clk 0:02:43]} 17. hxg3 {[%clk 0:02:57]}  Rf6 {[%clk 0:02:43]} 18. Qd2 {[%clk 0:02:54]}  Raf8 {[%clk 0:02:43]} 19. Bc2 {[%clk 0:02:43]}  Ne7 {[%clk 0:02:40]} 20. Rfe1 {[%clk 0:02:35]}  Bb5 {[%clk 0:02:30]} 21. Nc3 {[%clk 0:02:33]}  Bc4 {[%clk 0:02:31]} 22. Re3 {[%clk 0:02:29]}  a5 {[%clk 0:02:26]} 23. bxa5 {[%clk 0:02:23]}  Qxa5 {[%clk 0:02:26]} 24. Ne4 {[%clk 0:02:14]}  Qd8 {[%clk 0:02:10]} 25. Nxf6+ {[%clk 0:02:13]}  Rxf6 {[%clk 0:02:11]} 26. Rae1 {[%clk 0:02:10]}  Qc8 {[%clk 0:02:07]} 27. Ne5 {[%clk 0:01:57]}  Bxe5 {[%clk 0:02:04]} 28. Rxe5 {[%clk 0:01:57]}  Nc6 {[%clk 0:02:05]} 29. R5e3 {[%clk 0:01:50]}  b5 {[%clk 0:02:05]} 30. Bb1 {[%clk 0:01:45]}  Qd7 {[%clk 0:02:01]} 31. Rd1 {[%clk 0:01:33]}  g5 {[%clk 0:01:55]} 32. Rf3 {[%clk 0:01:28]}  Qf7 {[%clk 0:01:46]} 33. Rxf6 {[%clk 0:01:24]}  Qxf6 {[%clk 0:01:47]} 34. Qe3 {[%clk 0:01:25]}  Kg7 {[%clk 0:01:46]} 35. f4 {[%clk 0:01:25]}  Qe7 {[%clk 0:01:43]} 36. Re1 {[%clk 0:01:20]}  gxf4 {[%clk 0:01:35]} 37. gxf4 {[%clk 0:01:19]}  Qf6 {[%clk 0:01:34]} 38. Rd1 {[%clk 0:01:13]}  Kf7 {[%clk 0:01:34]} 39. Bc2 {[%clk 0:00:59]}  Ke7 {[%clk 0:01:32]} 40. Rd2 {[%clk 0:00:57]}  Kd6 {[%clk 0:01:29]} 41. Bd1 {[%clk 0:00:56]}  Qf5 {[%clk 0:01:26]} 42. Bc2 {[%clk 0:00:53]}  Qf6 {[%clk 0:01:25]} 43. Rd1 {[%clk 0:00:51]}  h5 {[%clk 0:01:25]} 44. Rd2 {[%clk 0:00:40]}  Kc7 {[%clk 0:01:24]} 45. Bd1 {[%clk 0:00:40]}  h4 {[%clk 0:01:23]} 46. Bg4 {[%clk 0:00:40]}  Kd7 {[%clk 0:01:20]} 47. Rd1 {[%clk 0:00:38]}  Qg6 {[%clk 0:01:16]} 48. Bh3 {[%clk 0:00:38]}  Nd8 {[%clk 0:01:08]} 49. f5 {[%clk 0:00:33]}  exf5 {[%clk 0:01:07]} 50. Qe5 {[%clk 0:00:33]}  Qd6 {[%clk 0:01:01]} 51. Qxf5+ {[%clk 0:00:32]}  Kc6 {[%clk 0:01:01]} 52. Re1 {[%clk 0:00:28]}  Kb6 {[%clk 0:00:58]} 53. Qc8 {[%clk 0:00:26]}  Bd3 {[%clk 0:00:27]} 54. Re8 {[%clk 0:00:21]}  Nc6 {[%clk 0:00:27]} 55. Re6 {[%clk 0:00:21]}  Qc7 {[%clk 0:00:28]} 56. Qe8 {[%clk 0:00:17]}  Be4 {[%clk 0:00:25]} 57. Bg4 {[%clk 0:00:16]}  Kb7 {[%clk 0:00:22]} 58. Rf6 {[%clk 0:00:15]}  Kb6 {[%clk 0:00:17]} 59. Bd7 {[%clk 0:00:14]}  Qg3 {[%clk 0:00:13]} 60. Rxc6+ {[%clk 0:00:14]}  Ka7 {[%clk 0:00:12]} 61. Ra6+ {[%clk 0:00:07]}  Kxa6 {[%clk 0:00:12]} 62. Qa8+ {[%clk 0:00:07]}  Kb6 {[%clk 0:00:12]} 63. Qb8+ {[%clk 0:00:07]}  Qxb8 {[%clk 0:00:12]} 0-1


[Site "https://www.chess.com"]